[Event "*** SCC Grand Prix: Titled Tuesday Blitz"]
[Site "Chess.com"]
[Date "2020.08.25"]
[Round "4"]
[White "smshk35"]
[Black "ajdemipopushi"]
[Result "1-0"]
[WhiteElo "2468"]
[BlackElo "2291"]
[TimeControl "180+1"]
[EndTime "10:40:46 PDT"]
[Termination "smshk35 won on time"]

1. e4 {[%clk 0:03:00.9]} 1... c5 {[%clk 0:02:59.8]} 2. Nf3 {[%clk 0:03:00.9]}
2... g6 {[%clk 0:03:00.2]} 3. c3 {[%clk 0:03:00.6]} 3... d5 {[%clk 0:02:59.8]}
4. exd5 {[%clk 0:03:00.4]} 4... Qxd5 {[%clk 0:03:00.1]} 5. Na3 {[%clk
0:03:01.1]} 5... Bg7 {[%clk 0:02:59]} 6. Bc4 {[%clk 0:03:01.4]} 6... Qe4+ {[%clk
0:02:58.7]} 7. Kf1 {[%clk 0:03:01.9]} 7... Nh6 {[%clk 0:02:34.6]} 8. d3 {[%clk
0:02:59.5]} 8... Qf5 {[%clk 0:02:08.3]} 9. Nb5 {[%clk 0:02:54.6]} 9... Na6
{[%clk 0:02:04]} 10. Qe2 {[%clk 0:02:49.1]} 10... O-O {[%clk 0:01:17.2]} 11. h3
{[%clk 0:02:28.9]} 11... Qd7 {[%clk 0:00:56.8]} 12. Bg5 {[%clk 0:02:26.5]} 12...
Nf5 {[%clk 0:00:50.2]} 13. g4 {[%clk 0:02:23.8]} 13... Nd6 {[%clk 0:00:49.8]}
14. Nxd6 {[%clk 0:01:24.6]} 14... exd6 {[%clk 0:00:49.6]} 15. Qe7 {[%clk
0:01:19.4]} 15... Qc6 {[%clk 0:00:24.1]} 16. Qe4 {[%clk 0:01:19]} 16... Nc7
{[%clk 0:00:20.6]} 17. Qxc6 {[%clk 0:01:16.8]} 17... bxc6 {[%clk 0:00:20.6]} 18.
Be7 {[%clk 0:01:17.2]} 18... Re8 {[%clk 0:00:12]} 19. Bxd6 {[%clk 0:01:16.9]}
19... Nb5 {[%clk 0:00:11.2]} 20. Bxc5 {[%clk 0:01:15.9]} 20... Be6 {[%clk
0:00:09.1]} 21. Bxe6 {[%clk 0:01:15.3]} 21... Rxe6 {[%clk 0:00:09.1]} 22. a4
{[%clk 0:01:12.3]} 22... Nc7 {[%clk 0:00:08.7]} 23. Nd4 {[%clk 0:01:11.1]} 23...
Re5 {[%clk 0:00:07.5]} 24. b4 {[%clk 0:01:08.1]} 24... Nd5 {[%clk 0:00:06.9]}
25. Nxc6 {[%clk 0:01:06.3]} 25... Re6 {[%clk 0:00:06.1]} 26. Nd4 {[%clk
0:01:03]} 26... Ree8 {[%clk 0:00:05.4]} 27. c4 {[%clk 0:00:53.4]} 27... Nxb4
{[%clk 0:00:04.5]} 28. Bxb4 {[%clk 0:00:53.9]} 28... Bxd4 {[%clk 0:00:04.2]} 29.
Re1 {[%clk 0:00:52.7]} 29... Rxe1+ {[%clk 0:00:03.4]} 30. Kxe1 {[%clk
0:00:53.6]} 30... Rb8 {[%clk 0:00:03.6]} 31. Ke2 {[%clk 0:00:34.4]} 31... Rxb4
{[%clk 0:00:04.1]} 32. Kf3 {[%clk 0:00:35.3]} 32... Rb2 {[%clk 0:00:04.6]} 33.
Ke4 {[%clk 0:00:35.9]} 33... Bxf2 {[%clk 0:00:04.1]} 34. c5 {[%clk 0:00:36.4]}
34... Bxc5 {[%clk 0:00:02.8]} 35. Rc1 {[%clk 0:00:37]} 35... Bb6 {[%clk
0:00:03.2]} 36. d4 {[%clk 0:00:35.8]} 36... Ra2 {[%clk 0:00:03.7]} 37. Rc4
{[%clk 0:00:35.1]} 37... Rd2 {[%clk 0:00:03.5]} 38. Ke3 {[%clk 0:00:34.6]} 38...
Kf8 {[%clk 0:00:03.7]} 39. Kxd2 {[%clk 0:00:34.2]} 39... Ke7 {[%clk 0:00:03.7]}
40. Ke3 {[%clk 0:00:34.3]} 40... Kd6 {[%clk 0:00:04.1]} 41. Ke4 {[%clk
0:00:34.9]} 41... f6 {[%clk 0:00:04.1]} 42. Rc8 {[%clk 0:00:34.3]} 1-0

[Event "*** SCC Grand Prix: Titled Tuesday Blitz"]
[Site "Chess.com"]
[Date "2020.08.25"]
[Round "4"]
[White "NoboaKevin1999"]
[Black "reutik"]
[Result "0-1"]
[WhiteElo "2423"]
[BlackElo "2277"]
[TimeControl "180+1"]
[EndTime "10:40:46 PDT"]
[Termination "reutik won on time"]

1. d4 {[%clk 0:02:58.2]} 1... Nf6 {[%clk 0:02:59.3]} 2. c4 {[%clk 0:02:58.3]}
2... e6 {[%clk 0:02:59.7]} 3. Nc3 {[%clk 0:02:58.6]} 3... Bb4 {[%clk 0:02:58.4]}
4. e3 {[%clk 0:02:58.8]} 4... c5 {[%clk 0:02:55.9]} 5. Bd3 {[%clk 0:02:57.9]}
5... Nc6 {[%clk 0:02:50.4]} 6. Ne2 {[%clk 0:02:57.6]} 6... cxd4 {[%clk
0:02:47.2]} 7. exd4 {[%clk 0:02:57.4]} 7... d5 {[%clk 0:02:47.3]} 8. O-O {[%clk
0:02:56.2]} 8... dxc4 {[%clk 0:02:44.9]} 9. Bxc4 {[%clk 0:02:55.9]} 9... O-O
{[%clk 0:02:44.8]} 10. Be3 {[%clk 0:02:53.9]} 10... b6 {[%clk 0:02:37.9]} 11. a3
{[%clk 0:02:43.4]} 11... Be7 {[%clk 0:02:33.3]} 12. Qd3 {[%clk 0:02:42.6]} 12...
Bb7 {[%clk 0:02:30.5]} 13. Rad1 {[%clk 0:02:40.9]} 13... Rc8 {[%clk 0:02:20.5]}
14. Ba2 {[%clk 0:02:40.5]} 14... g6 {[%clk 0:02:05.7]} 15. Bh6 {[%clk
0:02:35.7]} 15... Re8 {[%clk 0:02:05.7]} 16. Qh3 {[%clk 0:02:29.6]} 16... Qd7
{[%clk 0:01:56.6]} 17. d5 {[%clk 0:02:07.8]} 17... exd5 {[%clk 0:01:56.2]} 18.
Qxd7 {[%clk 0:02:04.2]} 18... Nxd7 {[%clk 0:01:56]} 19. Nxd5 {[%clk 0:02:04.6]}
19... Bf8 {[%clk 0:01:45.5]} 20. Bxf8 {[%clk 0:02:04.1]} 20... Kxf8 {[%clk
0:01:43]} 21. Nec3 {[%clk 0:02:01.1]} 21... Nc5 {[%clk 0:01:35]} 22. Nf6 {[%clk
0:01:51.9]} 22... Re5 {[%clk 0:01:32.1]} 23. b4 {[%clk 0:01:45.8]} 23... Kg7
{[%clk 0:01:29.4]} 24. Ng4 {[%clk 0:00:51.6]} 24... Rg5 {[%clk 0:01:23.5]} 25.
bxc5 {[%clk 0:00:47.3]} 25... Rxg4 {[%clk 0:01:23.4]} 26. cxb6 {[%clk 0:00:47]}
26... axb6 {[%clk 0:01:06.6]} 27. Rd7 {[%clk 0:00:46.5]} 27... Ba6 {[%clk
0:01:05.6]} 28. Rxf7+ {[%clk 0:00:43.7]} 28... Kh6 {[%clk 0:01:05.6]} 29. Re1
{[%clk 0:00:38.3]} 29... Nd8 {[%clk 0:01:02]} 30. Rf3 {[%clk 0:00:37.3]} 30...
Bb7 {[%clk 0:00:56.8]} 31. Rh3+ {[%clk 0:00:35.5]} 31... Kg7 {[%clk 0:00:55.5]}
32. Nd5 {[%clk 0:00:24.1]} 32... Re4 {[%clk 0:00:46]} 33. Rd1 {[%clk 0:00:13.9]}
33... Rc2 {[%clk 0:00:39.6]} 34. Bb1 {[%clk 0:00:12.3]} 34... Rd2 {[%clk
0:00:37.6]} 35. Rc1 {[%clk 0:00:07.7]} 35... Rc4 {[%clk 0:00:36.3]} 36. Re1
{[%clk 0:00:04.3]} 36... Bxd5 {[%clk 0:00:35]} 37. Re7+ {[%clk 0:00:01.8]} 37...
Kf6 {[%clk 0:00:34.6]} 38. Re1 {[%clk 0:00:01.7]} 38... Rcd4 {[%clk 0:00:33.2]}
39. Rhe3 {[%clk 0:00:01.1]} 39... Rd1 {[%clk 0:00:31.6]} 40. h4 {[%clk
0:00:01.4]} 40... Ne6 {[%clk 0:00:29.9]} 0-1

[Event "*** SCC Grand Prix: Titled Tuesday Blitz"]
[Site "Chess.com"]
[Date "2020.08.25"]
[Round "4"]
[White "cukin84"]
[Black "GelmanAlexander"]
[Result "0-1"]
[WhiteElo "2052"]
[BlackElo "2544"]
[TimeControl "180+1"]
[EndTime "10:40:47 PDT"]
[Termination "GelmanAlexander won by resignation"]

1. e4 {[%clk 0:03:00.9]} 1... c5 {[%clk 0:02:59.9]} 2. Nc3 {[%clk 0:03:00.1]}
2... e6 {[%clk 0:03:00.1]} 3. f4 {[%clk 0:02:59.7]} 3... a6 {[%clk 0:02:59.1]}
4. Nf3 {[%clk 0:02:59.7]} 4... d6 {[%clk 0:02:59.2]} 5. g3 {[%clk 0:02:58.8]}
5... Nc6 {[%clk 0:02:57.5]} 6. Bg2 {[%clk 0:02:58.2]} 6... Nf6 {[%clk
0:02:58.1]} 7. d3 {[%clk 0:02:57.7]} 7... Be7 {[%clk 0:02:58.2]} 8. O-O {[%clk
0:02:56.9]} 8... O-O {[%clk 0:02:58.6]} 9. h3 {[%clk 0:02:54.3]} 9... Bd7 {[%clk
0:02:59]} 10. Kh2 {[%clk 0:02:53.9]} 10... h6 {[%clk 0:02:59.4]} 11. Be3 {[%clk
0:02:53.2]} 11... b5 {[%clk 0:02:59.9]} 12. Qd2 {[%clk 0:02:50.2]} 12... b4
{[%clk 0:03:00.4]} 13. Nd1 {[%clk 0:02:49.6]} 13... a5 {[%clk 0:03:00.9]} 14. g4
{[%clk 0:02:43.2]} 14... a4 {[%clk 0:03:00.1]} 15. f5 {[%clk 0:02:40]} 15... a3
{[%clk 0:02:54.2]} 16. b3 {[%clk 0:02:39.2]} 16... Nh7 {[%clk 0:02:51.7]} 17.
Rb1 {[%clk 0:02:34.4]} 17... Bf6 {[%clk 0:02:50.6]} 18. e5 {[%clk 0:02:21.1]}
18... Nxe5 {[%clk 0:02:48]} 19. Nxe5 {[%clk 0:02:19.5]} 19... Bxe5+ {[%clk
0:02:48.2]} 20. Kh1 {[%clk 0:02:19.3]} 20... Rc8 {[%clk 0:02:40.3]} 21. Nf2
{[%clk 0:01:58.9]} 21... Bc6 {[%clk 0:02:23.3]} 22. Ne4 {[%clk 0:01:56.8]} 22...
Nf6 {[%clk 0:02:16.8]} 23. g5 {[%clk 0:01:48.7]} 23... Nxe4 {[%clk 0:02:15.2]}
24. dxe4 {[%clk 0:01:47.9]} 24... hxg5 {[%clk 0:02:09.5]} 25. Bxg5 {[%clk
0:01:46.9]} 25... f6 {[%clk 0:02:09.4]} 26. Be3 {[%clk 0:01:37.9]} 26... exf5
{[%clk 0:02:09]} 27. Rxf5 {[%clk 0:01:37.2]} 27... Qe7 {[%clk 0:02:06.7]} 28.
Rbf1 {[%clk 0:01:34.9]} 28... Bc3 {[%clk 0:02:04]} 29. Qd3 {[%clk 0:01:31.1]}
29... Rce8 {[%clk 0:02:03.7]} 30. Bf4 {[%clk 0:01:14.2]} 30... Rd8 {[%clk
0:01:50.6]} 31. Rd5 {[%clk 0:01:01.9]} 31... Bxd5 {[%clk 0:01:45.5]} 32. exd5
{[%clk 0:01:01.6]} 32... f5 {[%clk 0:01:35.4]} 33. Rf2 {[%clk 0:00:56.7]} 33...
Rde8 {[%clk 0:01:32.2]} 34. Kh2 {[%clk 0:00:56.2]} 34... Be5 {[%clk 0:01:31.7]}
35. Qg3 {[%clk 0:00:44.2]} 35... Bxf4 {[%clk 0:01:30.4]} 36. Rxf4 {[%clk
0:00:44.4]} 36... Qe5 {[%clk 0:01:27.7]} 37. h4 {[%clk 0:00:44.1]} 37... Rf6
{[%clk 0:01:24.8]} 38. h5 {[%clk 0:00:43.6]} 38... Rh6 {[%clk 0:01:23]} 39. Bf3
{[%clk 0:00:43.8]} 39... Kh8 {[%clk 0:01:20.5]} 40. Kh3 {[%clk 0:00:44]} 40...
Rf6 {[%clk 0:01:12.5]} 41. Qg5 {[%clk 0:00:42.9]} 41... Qe3 {[%clk 0:01:00.9]}
42. Kh4 {[%clk 0:00:34]} 42... Qf2+ {[%clk 0:00:58.7]} 43. Kh3 {[%clk
0:00:33.9]} 43... Re3 {[%clk 0:00:55.1]} 44. Qg3 {[%clk 0:00:29.1]} 44... Qxc2
{[%clk 0:00:42.4]} 45. Kh4 {[%clk 0:00:27.1]} 45... Qxa2 {[%clk 0:00:39.5]} 46.
Kg5 {[%clk 0:00:26.9]} 46... Qd2 {[%clk 0:00:34.4]} 47. Qh4 {[%clk 0:00:23.1]}
47... Rxf3 {[%clk 0:00:33.8]} 48. h6 {[%clk 0:00:20.3]} 48... Qxf4+ {[%clk
0:00:33.2]} 49. Qxf4 {[%clk 0:00:19.9]} 49... Rxf4 {[%clk 0:00:34.1]} 50. hxg7+
{[%clk 0:00:19.6]} 50... Kxg7 {[%clk 0:00:33.5]} 51. Kxf4 {[%clk 0:00:19.7]}
51... a2 {[%clk 0:00:33]} 0-1

[Event "*** SCC Grand Prix: Titled Tuesday Blitz"]
[Site "Chess.com"]
[Date "2020.08.25"]
[Round "4"]
[White "Violord"]
[Black "GMHess"]
[Result "1-0"]
[WhiteElo "2651"]
[BlackElo "2795"]
[TimeControl "180+1"]
[EndTime "10:40:51 PDT"]
[Termination "Violord won on time"]

1. e4 {[%clk 0:02:59.5]} 1... d6 {[%clk 0:03:00.1]} 2. d4 {[%clk 0:02:58.1]}
2... Nf6 {[%clk 0:03:00.7]} 3. Nc3 {[%clk 0:02:55.8]} 3... c6 {[%clk 0:03:01.3]}
4. f4 {[%clk 0:02:53]} 4... Qa5 {[%clk 0:03:01.5]} 5. Bd3 {[%clk 0:02:52.5]}
5... d5 {[%clk 0:03:01.7]} 6. e5 {[%clk 0:02:50.8]} 6... Ne4 {[%clk 0:03:02.3]}
7. Ne2 {[%clk 0:02:50.7]} 7... f5 {[%clk 0:03:01.1]} 8. O-O {[%clk 0:02:49.2]}
8... Be6 {[%clk 0:02:58.3]} 9. Be3 {[%clk 0:02:48.4]} 9... Nd7 {[%clk
0:02:55.6]} 10. a3 {[%clk 0:02:47.1]} 10... Qc7 {[%clk 0:02:50.1]} 11. Kh1
{[%clk 0:02:36.6]} 11... h6 {[%clk 0:02:40.6]} 12. Ng1 {[%clk 0:02:36.3]} 12...
O-O-O {[%clk 0:02:37.1]} 13. Nf3 {[%clk 0:02:33.3]} 13... Bf7 {[%clk 0:02:18.9]}
14. Qe1 {[%clk 0:02:31.5]} 14... e6 {[%clk 0:02:16.3]} 15. b4 {[%clk 0:02:31.4]}
15... Be7 {[%clk 0:02:13.8]} 16. b5 {[%clk 0:02:25.2]} 16... c5 {[%clk
0:02:10.3]} 17. dxc5 {[%clk 0:02:23.3]} 17... Ndxc5 {[%clk 0:02:03.6]} 18. Nd4
{[%clk 0:02:03.7]} 18... g5 {[%clk 0:01:49.1]} 19. Nce2 {[%clk 0:02:02.3]} 19...
gxf4 {[%clk 0:01:33.2]} 20. Bxf4 {[%clk 0:01:59.9]} 20... Bg5 {[%clk 0:01:26.2]}
21. Qb4 {[%clk 0:01:53.8]} 21... Kb8 {[%clk 0:01:09.5]} 22. a4 {[%clk
0:01:52.6]} 22... Bxf4 {[%clk 0:01:08]} 23. Nxf4 {[%clk 0:01:51.3]} 23... Qxe5
{[%clk 0:01:07.1]} 24. a5 {[%clk 0:01:36.9]} 24... Qd6 {[%clk 0:00:34.8]} 25.
Qb2 {[%clk 0:01:31.1]} 25... Nd2 {[%clk 0:00:26.7]} 26. a6 {[%clk 0:01:24.2]}
26... Nxf1 {[%clk 0:00:26.4]} 27. Rxf1 {[%clk 0:01:23.1]} 27... e5 {[%clk
0:00:18.2]} 28. Nxf5 {[%clk 0:01:21.4]} 28... Qf6 {[%clk 0:00:15.7]} 29. axb7
{[%clk 0:01:15.8]} 29... Rhf8 {[%clk 0:00:08.5]} 30. b6 {[%clk 0:01:12]} 30...
axb6 {[%clk 0:00:07.1]} 31. Ne2 {[%clk 0:00:59.4]} 31... Nxd3 {[%clk 0:00:04.8]}
32. cxd3 {[%clk 0:00:58.8]} 32... Bg6 {[%clk 0:00:05.3]} 33. Neg3 {[%clk
0:00:53.4]} 33... e4 {[%clk 0:00:03]} 34. Qa3 {[%clk 0:00:50.3]} 34... Kxb7
{[%clk 0:00:03.2]} 35. dxe4 {[%clk 0:00:49]} 35... Ra8 {[%clk 0:00:03.3]} 36.
Qf3 {[%clk 0:00:46.9]} 36... dxe4 {[%clk 0:00:02.9]} 37. Qxe4+ {[%clk
0:00:45.5]} 37... Qc6 {[%clk 0:00:03.6]} 38. Qe7+ {[%clk 0:00:25.8]} 38... Ka6
{[%clk 0:00:01.5]} 39. Ra1+ {[%clk 0:00:24]} 39... Kb5 {[%clk 0:00:02]} 40. Qe2+
{[%clk 0:00:20.1]} 1-0

[Event "*** SCC Grand Prix: Titled Tuesday Blitz"]
[Site "Chess.com"]
[Date "2020.08.25"]
[Round "4"]
[White "Irishchessman16"]
[Black "Blagorod"]
[Result "0-1"]
[WhiteElo "2335"]
[BlackElo "2149"]
[TimeControl "180+1"]
[EndTime "10:40:53 PDT"]
[Termination "Blagorod won by resignation"]

1. e4 {[%clk 0:01:31.9]} 1... e5 {[%clk 0:02:59.3]} 2. Nf3 {[%clk 0:01:29.6]}
2... Nf6 {[%clk 0:02:59.6]} 3. Nc3 {[%clk 0:01:27.8]} 3... Bb4 {[%clk
0:02:59.2]} 4. d3 {[%clk 0:01:00.9]} 4... d5 {[%clk 0:02:57.4]} 5. exd5 {[%clk
0:00:59.4]} 5... Nxd5 {[%clk 0:02:57.1]} 6. Bd2 {[%clk 0:00:59.7]} 6... O-O
{[%clk 0:02:56.5]} 7. g3 {[%clk 0:00:57.9]} 7... Bg4 {[%clk 0:02:48.3]} 8. Bg2
{[%clk 0:00:56.9]} 8... Re8 {[%clk 0:02:42.3]} 9. O-O {[%clk 0:00:56.6]} 9...
Bxc3 {[%clk 0:02:34.6]} 10. bxc3 {[%clk 0:00:55.7]} 10... Nc6 {[%clk 0:02:33.2]}
11. Re1 {[%clk 0:00:48.1]} 11... h6 {[%clk 0:02:25.5]} 12. Rb1 {[%clk
0:00:45.9]} 12... Rb8 {[%clk 0:02:24.2]} 13. Qc1 {[%clk 0:00:42.7]} 13... Qf6
{[%clk 0:02:20.6]} 14. Nh4 {[%clk 0:00:40.4]} 14... Nde7 {[%clk 0:02:08.8]} 15.
Re4 {[%clk 0:00:32.1]} 15... Be6 {[%clk 0:01:54.1]} 16. Ra4 {[%clk 0:00:19.7]}
16... a6 {[%clk 0:01:36.3]} 17. Qe1 {[%clk 0:00:18.9]} 17... Bd5 {[%clk
0:01:31.1]} 18. Bxd5 {[%clk 0:00:17.1]} 18... Nxd5 {[%clk 0:01:30.9]} 19. Qe4
{[%clk 0:00:17.2]} 19... Nb6 {[%clk 0:01:26.8]} 20. Ra3 {[%clk 0:00:17.4]} 20...
Rbd8 {[%clk 0:01:08.8]} 21. Be3 {[%clk 0:00:17.5]} 21... Qd6 {[%clk 0:00:57.1]}
22. Rab3 {[%clk 0:00:16.9]} 22... Na5 {[%clk 0:00:52.1]} 23. R3b2 {[%clk
0:00:15.8]} 23... Na4 {[%clk 0:00:48.9]} 24. Nf5 {[%clk 0:00:12.5]} 24... Qd7
{[%clk 0:00:39.2]} 25. Qh4 {[%clk 0:00:09.8]} 25... Nxb2 {[%clk 0:00:31]} 26.
Nxh6+ {[%clk 0:00:09.8]} 26... gxh6 {[%clk 0:00:28.2]} 27. Bxh6 {[%clk
0:00:10.1]} 27... Qf5 {[%clk 0:00:21.6]} 28. Rxb2 {[%clk 0:00:09.8]} 28... Rd6
{[%clk 0:00:21.1]} 29. Rb4 {[%clk 0:00:09.3]} 29... Rg6 {[%clk 0:00:17.5]} 30.
Be3 {[%clk 0:00:07.9]} 30... b6 {[%clk 0:00:15.8]} 31. Re4 {[%clk 0:00:07.9]}
31... Nc6 {[%clk 0:00:14.9]} 32. Rc4 {[%clk 0:00:07.3]} 32... b5 {[%clk
0:00:13.4]} 33. Rc5 {[%clk 0:00:07.3]} 33... Kg7 {[%clk 0:00:09.1]} 34. Qe4
{[%clk 0:00:02.6]} 34... Qxe4 {[%clk 0:00:07.6]} 35. dxe4 {[%clk 0:00:03.5]}
35... Rd8 {[%clk 0:00:06.8]} 0-1

[Event "*** SCC Grand Prix: Titled Tuesday Blitz"]
[Site "Chess.com"]
[Date "2020.08.25"]
[Round "4"]
[White "grandcoach"]
[Black "annamaja"]
[Result "0-1"]
[WhiteElo "2094"]
[BlackElo "2266"]
[TimeControl "180+1"]
[EndTime "10:40:54 PDT"]
[Termination "annamaja won on time"]

1. e4 {[%clk 0:03:00.9]} 1... e6 {[%clk 0:02:59.7]} 2. Nf3 {[%clk 0:02:59.4]}
2... d5 {[%clk 0:02:59.3]} 3. e5 {[%clk 0:02:59.8]} 3... c5 {[%clk 0:02:59]} 4.
b4 {[%clk 0:03:00.4]} 4... cxb4 {[%clk 0:02:55.2]} 5. a3 {[%clk 0:02:58]} 5...
Nc6 {[%clk 0:02:55.4]} 6. axb4 {[%clk 0:02:57.9]} 6... Bxb4 {[%clk 0:02:56.3]}
7. c3 {[%clk 0:02:58.3]} 7... Bf8 {[%clk 0:02:56]} 8. d4 {[%clk 0:02:58.8]} 8...
Nge7 {[%clk 0:02:56.4]} 9. Bd3 {[%clk 0:02:58.7]} 9... Nf5 {[%clk 0:02:53.8]}
10. h4 {[%clk 0:02:55.5]} 10... Be7 {[%clk 0:02:48.9]} 11. h5 {[%clk 0:02:54.6]}
11... Bd7 {[%clk 0:02:36.6]} 12. Na3 {[%clk 0:02:53.2]} 12... Rc8 {[%clk
0:02:34.2]} 13. Nc2 {[%clk 0:02:21.2]} 13... Na5 {[%clk 0:02:22.9]} 14. g4
{[%clk 0:02:18.2]} 14... Nh4 {[%clk 0:02:10.1]} 15. Nxh4 {[%clk 0:02:15.4]}
15... Bxh4 {[%clk 0:02:10.1]} 16. Rxa5 {[%clk 0:02:07.1]} 16... Qxa5 {[%clk
0:01:41.7]} 17. Rxh4 {[%clk 0:02:06.6]} 17... Qxc3+ {[%clk 0:01:41.9]} 18. Ke2
{[%clk 0:01:59.4]} 18... Ba4 {[%clk 0:01:37.2]} 19. Rh3 {[%clk 0:01:47.7]} 19...
Bxc2 {[%clk 0:01:12.7]} 20. Bb5+ {[%clk 0:01:38.9]} 20... Kf8 {[%clk 0:01:10.4]}
21. Qh1 {[%clk 0:01:13.7]} 21... Qxd4 {[%clk 0:01:02]} 22. Ba3+ {[%clk
0:01:11.1]} 22... Kg8 {[%clk 0:01:01.8]} 23. h6 {[%clk 0:00:56]} 23... Be4
{[%clk 0:00:37.5]} 24. Qe1 {[%clk 0:00:36.1]} 24... Bg2 {[%clk 0:00:21.8]} 25.
Rd3 {[%clk 0:00:24.3]} 25... Rc2+ {[%clk 0:00:19.8]} 26. Kd1 {[%clk 0:00:24]}
26... Qa1+ {[%clk 0:00:14.8]} 27. Kxc2 {[%clk 0:00:23.7]} 27... Qxe1 {[%clk
0:00:15.1]} 28. Rc3 {[%clk 0:00:15]} 28... Be4+ {[%clk 0:00:13.4]} 29. Kb3
{[%clk 0:00:10.9]} 29... Qb1+ {[%clk 0:00:11.7]} 30. Ka4 {[%clk 0:00:08.7]}
30... gxh6 {[%clk 0:00:10.3]} 31. f3 {[%clk 0:00:05.4]} 31... Bc2+ {[%clk
0:00:09.7]} 32. Ka5 {[%clk 0:00:03.7]} 32... b6+ {[%clk 0:00:08.9]} 33. Ka6
{[%clk 0:00:03.5]} 33... Kg7 {[%clk 0:00:08.7]} 34. Be7 {[%clk 0:00:02.5]} 34...
Rb8 {[%clk 0:00:04.9]} 35. Bf6+ {[%clk 0:00:01.8]} 35... Kg6 {[%clk 0:00:05.4]}
0-1

[Event "*** SCC Grand Prix: Titled Tuesday Blitz"]
[Site "Chess.com"]
[Date "2020.08.25"]
[Round "4"]
[White "Djager97"]
[Black "Jungle_Jaguar"]
[Result "0-1"]
[WhiteElo "2453"]
[BlackElo "2640"]
[TimeControl "180+1"]
[EndTime "10:40:55 PDT"]
[Termination "Jungle_Jaguar won on time"]

1. e4 {[%clk 0:03:00.9]} 1... e5 {[%clk 0:02:59.6]} 2. Nf3 {[%clk 0:03:00.8]}
2... Nc6 {[%clk 0:03:00.2]} 3. d4 {[%clk 0:03:01.3]} 3... exd4 {[%clk
0:03:00.3]} 4. Nxd4 {[%clk 0:03:02.2]} 4... Nf6 {[%clk 0:03:00.9]} 5. Nxc6
{[%clk 0:03:02.5]} 5... bxc6 {[%clk 0:03:01.8]} 6. e5 {[%clk 0:03:02.8]} 6...
Qe7 {[%clk 0:03:02.3]} 7. Qe2 {[%clk 0:03:03.4]} 7... Nd5 {[%clk 0:03:02.9]} 8.
c4 {[%clk 0:03:04]} 8... Ba6 {[%clk 0:03:03.6]} 9. b3 {[%clk 0:03:04.6]} 9... g6
{[%clk 0:02:59.7]} 10. g3 {[%clk 0:03:05.1]} 10... Bg7 {[%clk 0:02:59.4]} 11.
Bb2 {[%clk 0:03:05.7]} 11... O-O {[%clk 0:02:59.3]} 12. Bg2 {[%clk 0:03:06.3]}
12... Rfe8 {[%clk 0:02:54.4]} 13. O-O {[%clk 0:03:06.1]} 13... d6 {[%clk
0:02:44.2]} 14. Qd2 {[%clk 0:02:56.6]} 14... Bxe5 {[%clk 0:02:10.8]} 15. cxd5
{[%clk 0:02:55.6]} 15... Bxf1 {[%clk 0:02:11]} 16. Bxf1 {[%clk 0:02:48.1]} 16...
cxd5 {[%clk 0:02:11.3]} 17. Nc3 {[%clk 0:02:36.2]} 17... c6 {[%clk 0:02:08.8]}
18. Re1 {[%clk 0:02:10.6]} 18... Qf6 {[%clk 0:02:02.1]} 19. Bg2 {[%clk
0:01:34.7]} 19... Bd4 {[%clk 0:01:47.6]} 20. Rd1 {[%clk 0:01:28.3]} 20... Be5
{[%clk 0:01:14.9]} 21. Na4 {[%clk 0:01:26.4]} 21... Bxb2 {[%clk 0:01:12.8]} 22.
Nxb2 {[%clk 0:01:27.3]} 22... Re7 {[%clk 0:01:07.2]} 23. Nd3 {[%clk 0:01:10]}
23... Rae8 {[%clk 0:01:06.8]} 24. Bf1 {[%clk 0:00:41.1]} 24... Re4 {[%clk
0:00:17]} 25. Rc1 {[%clk 0:00:37.5]} 25... c5 {[%clk 0:00:16.2]} 26. Nf4 {[%clk
0:00:26.1]} 26... Rd4 {[%clk 0:00:15.8]} 27. Qc3 {[%clk 0:00:18.2]} 27... Qe5
{[%clk 0:00:10.6]} 28. Bg2 {[%clk 0:00:12.5]} 28... Rxf4 {[%clk 0:00:08.6]} 29.
gxf4 {[%clk 0:00:11.6]} 29... Qxf4 {[%clk 0:00:09.5]} 30. h3 {[%clk 0:00:09.9]}
30... d4 {[%clk 0:00:09.4]} 31. Qc2 {[%clk 0:00:07.3]} 31... d3 {[%clk 0:00:10]}
32. Qc3 {[%clk 0:00:04.5]} 32... Re2 {[%clk 0:00:10.5]} 33. Rf1 {[%clk 0:00:02]}
33... d2 {[%clk 0:00:11.2]} 34. Qf3 {[%clk 0:00:01.2]} 34... Qe5 {[%clk
0:00:08.6]} 0-1

[Event "*** SCC Grand Prix: Titled Tuesday Blitz"]
[Site "Chess.com"]
[Date "2020.08.25"]
[Round "4"]
[White "nocnypako"]
[Black "rynos0411"]
[Result "0-1"]
[WhiteElo "2593"]
[BlackElo "2439"]
[TimeControl "180+1"]
[EndTime "10:40:55 PDT"]
[Termination "rynos0411 won on time"]

1. d4 {[%clk 0:03:00.9]} 1... d5 {[%clk 0:02:55.6]} 2. c4 {[%clk 0:03:01]} 2...
c6 {[%clk 0:02:54.3]} 3. Nf3 {[%clk 0:03:00.1]} 3... Nf6 {[%clk 0:02:53.8]} 4.
Nc3 {[%clk 0:03:00.7]} 4... e6 {[%clk 0:02:53.9]} 5. Bg5 {[%clk 0:02:59.4]} 5...
Nbd7 {[%clk 0:02:54.2]} 6. e3 {[%clk 0:02:59.2]} 6... Qa5 {[%clk 0:02:54.8]} 7.
cxd5 {[%clk 0:02:59.4]} 7... Nxd5 {[%clk 0:02:52.8]} 8. Qd2 {[%clk 0:02:59.9]}
8... Nxc3 {[%clk 0:02:43.8]} 9. bxc3 {[%clk 0:02:59.1]} 9... Bd6 {[%clk
0:02:36.5]} 10. Bd3 {[%clk 0:02:55.8]} 10... O-O {[%clk 0:02:34.1]} 11. O-O
{[%clk 0:02:49.4]} 11... b6 {[%clk 0:02:34.2]} 12. a4 {[%clk 0:02:40.9]} 12...
Ba6 {[%clk 0:02:33.6]} 13. Bxa6 {[%clk 0:02:38]} 13... Qxa6 {[%clk 0:02:34.5]}
14. a5 {[%clk 0:02:38.3]} 14... bxa5 {[%clk 0:02:27.3]} 15. Qa2 {[%clk
0:02:24.2]} 15... Bc7 {[%clk 0:02:25.4]} 16. c4 {[%clk 0:02:19]} 16... Nb6
{[%clk 0:02:20.9]} 17. c5 {[%clk 0:02:15.1]} 17... Nd5 {[%clk 0:02:19.9]} 18. e4
{[%clk 0:02:09]} 18... Nb4 {[%clk 0:02:01.4]} 19. Qd2 {[%clk 0:02:08.3]} 19...
Rab8 {[%clk 0:01:59.5]} 20. Be7 {[%clk 0:02:05.6]} 20... Rfe8 {[%clk 0:01:58.3]}
21. Qg5 {[%clk 0:02:04.8]} 21... h6 {[%clk 0:01:53.7]} 22. Qh4 {[%clk
0:02:02.2]} 22... Bd8 {[%clk 0:01:53.4]} 23. Bxd8 {[%clk 0:02:01.9]} 23... Rexd8
{[%clk 0:01:54.3]} 24. h3 {[%clk 0:01:55.7]} 24... a4 {[%clk 0:01:48.7]} 25. g4
{[%clk 0:01:39]} 25... Qd3 {[%clk 0:01:44.8]} 26. Qg3 {[%clk 0:01:32.1]} 26...
Qxe4 {[%clk 0:01:39.3]} 27. Rxa4 {[%clk 0:01:31]} 27... a6 {[%clk 0:01:32.5]}
28. Re1 {[%clk 0:01:23.1]} 28... Qd5 {[%clk 0:01:26.2]} 29. Rb1 {[%clk
0:01:17.8]} 29... Qc4 {[%clk 0:01:08.3]} 30. Qc7 {[%clk 0:01:00.7]} 30... Rdc8
{[%clk 0:00:57.2]} 31. Qa7 {[%clk 0:00:43.3]} 31... Qd3 {[%clk 0:00:50.5]} 32.
Raxb4 {[%clk 0:00:33.1]} 32... Rxb4 {[%clk 0:00:48.5]} 33. Rxb4 {[%clk 0:00:34]}
33... Qxf3 {[%clk 0:00:47.9]} 34. Qxa6 {[%clk 0:00:32.9]} 34... Rd8 {[%clk
0:00:44.9]} 35. Qb6 {[%clk 0:00:27.6]} 35... Rd7 {[%clk 0:00:32.4]} 36. Qb8+
{[%clk 0:00:15.9]} 36... Kh7 {[%clk 0:00:31.6]} 37. Qe8 {[%clk 0:00:15.1]} 37...
Ra7 {[%clk 0:00:27.2]} 38. Rb1 {[%clk 0:00:09.8]} 38... Ra2 {[%clk 0:00:25.1]}
39. Rf1 {[%clk 0:00:08.5]} 39... Rd2 {[%clk 0:00:25.1]} 40. Qd7 {[%clk
0:00:08.1]} 40... Qxh3 {[%clk 0:00:21.4]} 41. Qxc6 {[%clk 0:00:07.7]} 41... Rxd4
{[%clk 0:00:20.3]} 42. f3 {[%clk 0:00:04]} 42... Rd2 {[%clk 0:00:20.2]} 43. Rf2
{[%clk 0:00:03.7]} 43... Qg3+ {[%clk 0:00:19.7]} 0-1